fUST/lending_fUST_20260511
["ID","MTS","AMOUNT","RATE_DAILY","PERIOD"]
[422005874,1778447442000,-185.0,0.00010867,2]
[422005853,1778447442000,-500.0,0.00010655,2]
[422005851,1778447442000,-500.0,0.00010655,2]
[422005850,1778447442000,-500.0,0.00010655,2]
[422005848,1778447442000,-943.14805819,0.00010655,2]
[422005858,1778447442000,-2483.39427381,0.00010655,2]
[422005868,1778447442000,-1563.15343537,0.00010867,2]
[422005849,1778447442000,-565.62952729,0.00010655,2]
[422005869,1778447442000,-651.84656463,0.00010867,2]
[422005872,1778447442000,-1411.0,0.00010867,2]
[422005894,1778447442000,-500.0,0.00010958,2]
[422005895,1778447442000,-500.0,0.00010958,2]
[422005887,1778447442000,-500.0,0.00010958,2]
[422005891,1778447442000,-500.0,0.00010958,2]
[422005886,1778447442000,-500.0,0.00010958,2]
[422005890,1778447442000,-500.0,0.00010958,2]
[422005889,1778447442000,-500.0,0.00010958,2]
[422005888,1778447442000,-997.01,0.00010958,2]
[422005885,1778447442000,-500.0,0.00010958,2]
[422005893,1778447442000,-451.90147667,0.00010958,2]
[422005881,1778447442000,-500.0,0.00010958,2]
[422005884,1778447442000,-500.0,0.00010958,2]
[422005866,1778447442000,-720.0,0.00010801,2]
[422005867,1778447442000,-28591.49164102,0.00010858,2]
[422005878,1778447442000,-500.0,0.00010958,2]
[422005873,1778447442000,-742.0,0.00010867,2]
[422005879,1778447442000,-500.0,0.00010958,2]
[422005882,1778447442000,-500.0,0.00010958,2]
[422005892,1778447442000,-48.09852333,0.00010958,2]
[422005883,1778447442000,-172.7107443,0.00010958,2]
[422005880,1778447442000,-500.0,0.00010958,2]
[422005906,1778447443000,-620.98,0.00010958,2]
[422005925,1778447443000,-4143.0169926,9.345e-05,2]
[422005908,1778447443000,-353.99806828,0.00010958,2]
[422005909,1778447443000,-146.00193172,0.00010958,2]
[422005910,1778447443000,-327.57183227,0.00010958,2]
[422005907,1778447443000,-217.85477988,0.00010958,2]
[422005904,1778447443000,-500.0,0.00010958,2]
[422005897,1778447443000,-967.68,0.00010958,2]
[422005900,1778447443000,-585.46,0.00010958,2]
[422005899,1778447443000,-591.68,0.00010958,2]
[422005898,1778447443000,-500.0,0.00010958,2]
[422005896,1778447443000,-500.0,0.00010958,2]
[422005902,1778447443000,-947.14318785,0.00010958,2]
[422005901,1778447443000,-500.0,0.00010958,2]
[422005929,1778447443000,-591.44202008,0.00010958,2]
[422005903,1778447443000,-63.44681215,0.00010958,2]
[422005927,1778447443000,-172.42816773,0.00010958,2]
[422005928,1778447443000,-500.0,0.00010958,2]
[422005930,1778447443000,-911.91340463,0.00010958,2]
[422005926,1778447443000,-856.9830074,9.345e-05,2]
[422005946,1778447443000,-987.2770823,0.00010958,2]
[422005945,1778447443000,-756.037661,0.00010958,2]
[422005943,1778447443000,-873.26203775,0.00010958,2]
[422005939,1778447443000,-873.15,0.00010958,2]
[422005941,1778447443000,-679.0,0.00010958,2]
[422005938,1778447443000,-644.52,0.00010958,2]
[422005935,1778447443000,-500.0,0.00010958,2]
[422005944,1778447443000,-63.47796225,0.00010958,2]
[422005934,1778447443000,-500.0,0.00010958,2]
[422005931,1778447443000,-1314.66457529,0.00010958,2]
[422005933,1778447443000,-421.5551223,0.00010958,2]
[422005940,1778447443000,-500.0,0.00010958,2]
[422005937,1778447443000,-500.0,0.00010958,2]
[422005942,1778447443000,-961.78,0.00010958,2]
[422005932,1778447443000,-78.4448777,0.00010958,2]
[422005936,1778447443000,-500.0,0.00010958,2]
[422005972,1778447447000,-9789.45372703,0.00010767,2]
[422006154,1778448638000,-1289.70641936,8.467e-05,2]
[422006142,1778448638000,-2000.38884425,8.467e-05,2]
[422006164,1778448639000,-5751.7473967,9.589e-05,2]
[422006177,1778448639000,-1000.55093424,0.00010405,2]
[422006161,1778448639000,-151.0,8.817e-05,2]
[422006158,1778448639000,-356.99222983,8.51e-05,2]
[422006162,1778448639000,-291.24637229,8.817e-05,2]
[422006159,1778448639000,-151.0,8.552e-05,2]
[422006165,1778448639000,-151.0,0.0001012,2]
[422006156,1778448639000,-1709.90473639,8.467e-05,2]
[422006172,1778448639000,-161.61126227,0.00010405,2]
[422006166,1778448639000,-396.91057718,0.0001018,2]
[422006167,1778448639000,-3.48984232,0.0001018,2]
[422006170,1778448639000,-160.0,0.00010405,2]
[422006169,1778448639000,-160.0,0.00010395,2]
[422006176,1778448639000,-2677.60248116,0.00010405,2]
[422006163,1778448639000,-300.0,9.588e-05,2]
[422006178,1778448639000,-421.2508312,0.0001051,2]
[422006179,1778448639000,-24548.81267671,0.00010562,2]
[422006180,1778448639000,-500.0,0.00010661,2]
[422006181,1778448639000,-428.70446604,0.00010661,2]
[422006182,1778448639000,-514.78761565,0.00010661,2]
[422006174,1778448639000,-160.0,0.00010405,2]
[422006183,1778448639000,-2665.48671568,0.00010662,2]
[422006187,1778448641000,-6981.63,0.00010662,2]
[422006213,1778448644000,-4467.65454512,0.00010662,2]
[422006212,1778448644000,-1115.78353468,0.00010662,2]
[422006222,1778448647000,-1228.19690968,0.00010662,2]
[422006223,1778448647000,-1326.53801658,0.00010662,2]
[422006225,1778448815000,1124.08438679,0.00014994,120]
[422006227,1778448816000,1124.08438679,0.00015075,120]
[422006226,1778448816000,1124.08438679,0.00015035,120]
[422006300,1778449831000,-346.36546197,9.255e-05,2]
[422006298,1778449831000,-160.322468,9.107e-05,2]
[422006296,1778449831000,-5000.0,8.836e-05,2]
[422006295,1778449831000,-523.60051223,8.748e-05,2]
[422006302,1778449831000,-2489.5115578,9.302e-05,2]
[422006301,1778449831000,-300.0,9.301e-05,2]
[422006303,1778449831000,-765.66322273,9.302e-05,2]
[422006334,1778449838000,-325.80027339,9.302e-05,2]
[422006337,1778449838000,-341.0,0.00010231,2]
[422006335,1778449838000,-6419.02494608,9.302e-05,2]
[422006336,1778449838000,-151.0,0.00010055,2]
[422006341,1778449838000,-10415.89734872,0.00010254,2]
[422006339,1778449838000,-56210.02249695,0.00010254,2]
[422006342,1778449838000,-307.0492274,0.00010354,2]
[422006343,1778449838000,-65154.44766927,0.00010354,2]
[422006338,1778449838000,-172.9181,0.00010245,2]
[422006340,1778449838000,-227141.75279285,0.00010254,2]
[422006412,1778449846000,-12841.55769411,0.00010354,2]
[422006410,1778449846000,-1365.08688612,0.0001025,2]
[422006411,1778449846000,-3634.91311388,0.0001025,2]
[422006545,1778451032000,-180.0,0.0001024,2]
[422006528,1778451032000,-300.0,9.12e-05,2]
[422006523,1778451032000,-300.0,9.12e-05,2]
[422006531,1778451032000,-5743.63936636,9.123e-05,2]
[422006515,1778451032000,-1200.0,9.107e-05,2]
[422006518,1778451032000,-300.0,9.108e-05,13]
[422006520,1778451032000,-300.0,9.108e-05,21]
[422006511,1778451032000,-384.10522226,7.562e-05,2]
[422006506,1778451032000,-5000.0,7.375e-05,2]
[422006513,1778451032000,-793.32332806,7.6e-05,2]
[422006508,1778451032000,-1578.23208332,7.449e-05,2]
[422006525,1778451032000,-300.0,9.12e-05,2]
[422006547,1778451032000,-151.0,0.0001024,2]
[422006552,1778451032000,-151.0,0.0001024,2]
[422006554,1778451032000,-151.0,0.0001024,2]
[422006538,1778451032000,-453.24416227,9.562e-05,2]
[422006536,1778451032000,-4256.36063364,9.123e-05,2]
[422006541,1778451032000,-724.0,0.00010018,2]
[422006556,1778451032000,-151.0,0.0001024,2]
[422006558,1778451032000,-151.0,0.0001024,2]
[422006560,1778451032000,-151.0,0.0001024,2]
[422006566,1778451032000,-300.89714103,0.0001024,2]
[422006568,1778451032000,-21627.67375548,0.00010246,2]
[422006562,1778451032000,-151.0,0.0001024,2]
[422006564,1778451032000,-151.0,0.0001024,2]
[422006550,1778451032000,-151.0,0.0001024,2]
[422006543,1778451032000,-420.0,0.00010032,2]
[422006697,1778451040000,-671.89575146,0.00010246,2]
[422006695,1778451040000,-40439.68061561,0.00010246,2]
[422006705,1778451040000,-325.99178291,0.00010246,2]
[422006707,1778451040000,-359.99275684,0.00010246,2]
[422006699,1778451040000,-1536.92158695,0.00010246,2]
[422006776,1778451041000,-685.93329374,0.00010246,2]
[422006775,1778451041000,-2035.30690005,0.00010246,2]
[422006796,1778451043000,-1037.38318,0.00010246,2]
[422006804,1778451046000,-3463.25246361,0.00010146,2]
[422006803,1778451046000,-1332.2108709,0.00010146,2]
[422006858,1778452232000,-5000.0,8.947e-05,2]
[422006861,1778452232000,-373.94662971,9.037e-05,2]
[422006867,1778452232000,-300.0,9.5e-05,2]
[422006870,1778452232000,-300.0,9.5e-05,2]
[422006873,1778452232000,-95.57127029,9.501e-05,2]
[422006864,1778452232000,-286.63,9.066e-05,6]
[422007100,1778452239000,-704.220022,9.406e-05,2]
[422007120,1778452245000,-4008.36994734,9.406e-05,2]
[422007119,1778452245000,-287.41003066,9.406e-05,2]
[422007121,1778452245000,-9904.42872971,9.501e-05,2]
[422007122,1778452245000,-190.36,9.668e-05,2]
[422007123,1778452245000,-151.4503604,0.00010012,2]
[422007125,1778452245000,-160.0,0.0001014,2]
[422007126,1778452245000,-161.61126227,0.0001014,2]
[422007128,1778452245000,-1186.930361,0.00010178,2]
[422007127,1778452245000,-160.0,0.0001014,2]
[422007129,1778452245000,-10580.13898867,0.00010178,2]
[422007130,1778452245000,-500.0,0.00010178,2]
[422007124,1778452245000,-160.0,0.0001014,2]
[422007141,1778452246000,-12585.45336495,0.00010178,2]
[422007140,1778452246000,-8510.6994514,0.00010178,2]
[422007146,1778453327000,2345.0,0.00019178,120]
[422007633,1778453438000,-1367.6394302,9.123e-05,2]
[422007632,1778453438000,-5000.0,9.032e-05,2]
[422007635,1778453438000,-300.0,9.79e-05,2]
[422007638,1778453438000,-2404.81356325,9.791e-05,2]
[422007636,1778453438000,-890.1977708,9.791e-05,2]
[422007637,1778453438000,-10415.09206225,9.791e-05,2]
[422007634,1778453438000,-376.78320466,9.137e-05,2]
[422007641,1778453440000,-16015.54180994,9.791e-05,2]
[422007643,1778453440000,-949.31163456,9.791e-05,2]
[422007642,1778453440000,-3110.46878677,9.791e-05,2]
[422007719,1778453444000,-152.0,0.00010392,2]
[422007707,1778453444000,-152.0,0.00010316,2]
[422007706,1778453444000,-152.0,0.00010313,2]
[422007696,1778453444000,-152.0,0.00010296,2]
[422007684,1778453444000,-2631.9206536,9.791e-05,2]
[422007694,1778453444000,-152.0,0.00010158,2]
[422007685,1778453444000,-151.0,0.00010048,2]
[422007692,1778453444000,-152.0,0.00010155,2]
[422007693,1778453444000,-152.0,0.00010158,2]
[422007690,1778453444000,-160.0,0.00010099,2]
[422007691,1778453444000,-152.0,0.00010155,2]
[422007688,1778453444000,-160.0,0.00010099,2]
[422007689,1778453444000,-161.61126227,0.00010099,2]
[422007686,1778453444000,-151.0,0.00010048,2]
[422007683,1778453444000,-808.61567802,9.791e-05,2]
[422007681,1778453444000,-3803.0474745,9.791e-05,2]
[422007682,1778453444000,-1357.39668019,9.791e-05,2]
[422007680,1778453444000,-3339.73672122,9.791e-05,2]
[422007700,1778453444000,-152.0,0.00010299,2]
[422007695,1778453444000,-152.0,0.00010161,2]
[422007687,1778453444000,-160.0,0.00010099,2]
[422007705,1778453444000,-152.0,0.00010313,2]
[422007721,1778453444000,-152.0,0.00010392,2]
[422007720,1778453444000,-152.0,0.00010392,2]
[422007718,1778453444000,-152.0,0.00010392,2]
[422007714,1778453444000,-128.26346977,0.00010352,2]
[422007713,1778453444000,-152.0,0.00010352,2]
[422007716,1778453444000,-152.0,0.00010355,2]
[422007717,1778453444000,-152.0,0.00010355,2]
[422007715,1778453444000,-23.73653023,0.00010352,2]
[422007712,1778453444000,-152.0,0.00010352,2]
[422007710,1778453444000,-152.0,0.00010348,2]
[422007709,1778453444000,-152.0,0.00010348,2]
[422007711,1778453444000,-152.0,0.00010348,2]
[422007708,1778453444000,-152.0,0.00010348,2]
[422007703,1778453444000,-152.0,0.0001031,2]
[422007701,1778453444000,-152.0,0.0001031,2]
[422007699,1778453444000,-152.0,0.00010299,2]
[422007702,1778453444000,-152.0,0.0001031,2]
[422007698,1778453444000,-152.0,0.00010296,2]
[422007704,1778453444000,-152.0,0.00010313,2]
[422007697,1778453444000,-152.0,0.00010296,2]
[422007725,1778453445000,-152.0,0.00010395,2]
[422007724,1778453445000,-152.0,0.00010395,2]
[422007722,1778453445000,-152.0,0.00010392,2]
[422007726,1778453445000,-0.48471577,0.00010395,2]
[422007723,1778453445000,-152.0,0.00010395,2]
[422007806,1778453446000,-151.51528423,0.00010395,2]
[422007820,1778453446000,-276.86673077,0.00010464,2]
[422007816,1778453446000,-151.0,0.00010409,2]
[422007814,1778453446000,-537.6845,0.00010409,2]
[422007818,1778453446000,-445.202766,0.00010409,2]
[422007808,1778453446000,-152.0,0.00010398,2]
[422007810,1778453446000,-152.0,0.00010398,2]
[422007812,1778453446000,-162.380719,0.00010409,2]
[422007858,1778453447000,-152.0,0.00010623,2]
[422007885,1778453447000,-152.0,0.00010756,2]
[422007875,1778453447000,-152.0,0.0001063,2]
[422007872,1778453447000,-152.0,0.0001063,2]
[422007870,1778453447000,-152.0,0.00010626,2]
[422007889,1778453447000,-152.0,0.00010756,2]
[422007856,1778453447000,-152.0,0.00010623,2]
[422007852,1778453447000,-152.0,0.00010623,2]
[422007865,1778453447000,-152.0,0.00010626,2]
[422007863,1778453447000,-152.0,0.00010626,2]
[422007854,1778453447000,-152.0,0.00010623,2]
[422007861,1778453447000,-152.0,0.00010623,2]
[422007848,1778453447000,-280.71209573,0.00010464,2]
[422007850,1778453447000,-152.0,0.00010623,2]
[422007867,1778453447000,-152.0,0.00010626,2]
[422007877,1778453447000,-152.0,0.0001063,2]
[422007868,1778453447000,-152.0,0.00010626,2]
[422007883,1778453447000,-152.0,0.00010756,2]
[422007909,1778453447000,-152.0,0.00010762,2]
[422007903,1778453447000,-152.0,0.00010759,2]
[422007918,1778453447000,-407.1197459,0.000109,2]
[422007916,1778453447000,-420.0,0.00010769,2]
[422007907,1778453447000,-152.0,0.00010759,2]
[422007913,1778453447000,-152.0,0.00010762,2]
[422007911,1778453447000,-152.0,0.00010762,2]
[422007887,1778453447000,-152.0,0.00010756,2]
[422007899,1778453447000,-152.0,0.00010759,2]
[422007897,1778453447000,-152.0,0.00010759,2]
[422007895,1778453447000,-152.0,0.00010759,2]
[422007891,1778453447000,-152.0,0.00010756,2]
[422007879,1778453447000,-152.0,0.00010756,2]
[422007881,1778453447000,-152.0,0.00010756,2]
[422007893,1778453447000,-152.0,0.00010756,2]
[422007901,1778453447000,-152.0,0.00010759,2]
[422008946,1778454120000,622.92836665,0.0001917,120]
[422008997,1778454500000,1015.34931903,0.00019178,120]
[422008998,1778454527000,400.0,0.0001917,120]
[422008999,1778454561000,1300.0,0.0001917,120]
[422009089,1778454632000,-300.0,7.751e-05,2]
[422009083,1778454632000,-300.0,7.751e-05,2]
[422009079,1778454632000,-300.0,7.751e-05,2]
[422009072,1778454632000,-300.0,7.751e-05,2]
[422009081,1778454632000,-300.0,7.751e-05,2]
[422009078,1778454632000,-300.0,7.751e-05,2]
[422009074,1778454632000,-300.0,7.751e-05,2]
[422009087,1778454632000,-300.0,7.751e-05,2]
[422009070,1778454632000,-300.0,7.751e-05,2]
[422009058,1778454632000,-300.0,7.597e-05,2]
[422009066,1778454632000,-2710.75559043,7.6e-05,2]
[422009060,1778454632000,-300.0,7.597e-05,2]
[422009062,1778454632000,-300.0,7.597e-05,2]
[422009064,1778454632000,-300.0,7.597e-05,2]
[422009054,1778454632000,-5000.0,7.375e-05,2]
[422009052,1778454632000,-5000.0,7.301e-05,2]
[422009056,1778454632000,-1200.0,7.448e-05,2]
[422009093,1778454632000,-300.0,7.751e-05,2]
[422009068,1778454632000,-300.0,7.751e-05,2]
[422009091,1778454632000,-300.0,7.751e-05,2]
[422009075,1778454632000,-300.0,7.751e-05,2]
[422009099,1778454632000,-378.51214503,8.271e-05,2]
[422009095,1778454632000,-300.0,7.751e-05,2]
[422009135,1778454632000,-160.0,0.00010087,2]
[422009137,1778454632000,-161.61126227,0.00010087,2]
[422009131,1778454632000,-218.60019282,0.0001006,2]
[422009129,1778454632000,-264.81237341,0.0001,2]
[422009114,1778454632000,-250.0,9.29e-05,2]
[422009116,1778454632000,-1292.6830293,9.296e-05,2]
[422009112,1778454632000,-680.49541195,9.196e-05,2]
[422009127,1778454632000,-3129.24588134,9.896e-05,2]
[422009118,1778454632000,-1904.87064665,9.396e-05,2]
[422009133,1778454632000,-160.0,0.00010087,2]
[422009123,1778454632000,-2517.05826399,9.596e-05,2]
[422009110,1778454632000,-167.0,9.192e-05,2]
[422009085,1778454632000,-300.0,7.751e-05,2]
[422009102,1778454632000,-420.0,8.357e-05,2]
[422009120,1778454632000,-2224.71346442,9.496e-05,2]
[422009104,1778454632000,-720.0,8.696e-05,2]
[422009125,1778454632000,-2621.9005936,9.696e-05,2]
[422009126,1778454632000,-3019.08772292,9.796e-05,2]
[422009122,1778454632000,-864.0,9.565e-05,2]
[422009097,1778454632000,-600.0,7.905e-05,2]
[422009193,1778454633000,-500.0,0.0001016,2]
[422009177,1778454633000,-500.0,0.0001016,2]
[422009181,1778454633000,-500.0,0.0001016,2]
[422009192,1778454633000,-500.0,0.0001016,2]
[422009183,1778454633000,-500.0,0.0001016,2]
[422009176,1778454633000,-500.0,0.0001016,2]
[422009185,1778454633000,-500.0,0.0001016,2]
[422009201,1778454633000,-500.0,0.0001016,2]
[422009195,1778454633000,-500.0,0.0001016,2]
[422009204,1778454633000,-642.30862619,0.0001016,2]
[422009190,1778454633000,-500.0,0.0001016,2]
[422009199,1778454633000,-500.0,0.0001016,2]
[422009197,1778454633000,-500.0,0.0001016,2]
[422009202,1778454633000,-500.0,0.0001016,2]
[422009217,1778454633000,-500.0,0.0001016,2]
[422009218,1778454633000,-570.29137301,0.0001016,2]
[422009187,1778454633000,-500.0,0.0001016,2]
[422009179,1778454633000,-500.0,0.0001016,2]
[422009156,1778454633000,-500.0,0.0001016,2]
[422009164,1778454633000,-500.0,0.0001016,2]
[422009222,1778454633000,-500.0,0.0001016,2]
[422009140,1778454633000,-160.0,0.00010138,2]
[422009142,1778454633000,-152.0,0.00010155,2]
[422009148,1778454633000,-500.0,0.0001016,2]
[422009139,1778454633000,-3741.43349869,0.00010096,2]
[422009144,1778454633000,-152.0,0.00010158,2]
[422009146,1778454633000,-621.06724334,0.0001016,2]
[422009150,1778454633000,-500.0,0.0001016,2]
[422009152,1778454633000,-500.0,0.0001016,2]
[422009154,1778454633000,-500.0,0.0001016,2]
[422009166,1778454633000,-500.0,0.0001016,2]
[422009158,1778454633000,-500.0,0.0001016,2]
[422009160,1778454633000,-500.0,0.0001016,2]
[422009168,1778454633000,-500.0,0.0001016,2]
[422009174,1778454633000,-500.0,0.0001016,2]
[422009170,1778454633000,-500.0,0.0001016,2]
[422009162,1778454633000,-500.0,0.0001016,2]
[422009172,1778454633000,-500.0,0.0001016,2]
[422009220,1778454633000,-500.0,0.0001016,2]
[422009237,1778454633000,-4210.64911086,0.00010396,2]
[422009208,1778454633000,-500.0,0.0001016,2]
[422009248,1778454633000,-151.0,0.00010689,2]
[422009247,1778454633000,-151.0,0.00010689,2]
[422009236,1778454633000,-152.0,0.00010387,2]
[422009239,1778454633000,-500.0,0.00010474,2]
[422009238,1778454633000,-280.71209573,0.00010402,2]
[422009241,1778454633000,-151.0,0.00010475,2]
[422009206,1778454633000,-500.0,0.0001016,2]
[422009246,1778454633000,-151.0,0.00010689,2]
[422009245,1778454633000,-151.0,0.00010689,2]
[422009240,1778454633000,-151.0,0.00010475,2]
[422009244,1778454633000,-152.0,0.0001057,2]
[422009242,1778454633000,-4607.83624018,0.00010496,2]
[422009250,1778454633000,-151.0,0.00010689,2]
[422009249,1778454633000,-151.0,0.00010689,2]
[422009251,1778454633000,-4995.36225782,0.00010696,2]
[422009253,1778454633000,-665.05,0.000109,2]
[422009252,1778454633000,-5628.64322451,0.000109,2]
[422009230,1778454633000,-446.64433113,0.00010271,2]
[422009231,1778454633000,-4196.13858701,0.00010296,2]
[422009243,1778454633000,-1000.0,0.00010522,2]
[422009233,1778454633000,-152.0,0.00010381,2]
[422009229,1778454633000,-31653.018308,0.00010201,2]
[422009210,1778454633000,-500.0,0.0001016,2]
[422009219,1778454633000,-500.0,0.0001016,2]
[422009212,1778454633000,-500.0,0.0001016,2]
[422009214,1778454633000,-500.0,0.0001016,2]
[422009213,1778454633000,-500.0,0.0001016,2]
[422009215,1778454633000,-500.0,0.0001016,2]
[422009216,1778454633000,-500.0,0.0001016,2]
[422009221,1778454633000,-221.9001347,0.0001016,2]
[422009225,1778454633000,-3813.46198155,0.00010196,2]
[422009234,1778454633000,-152.0,0.00010384,2]
[422009235,1778454633000,-152.0,0.00010384,2]
[422009228,1778454633000,-667.6483281,0.00010201,2]
[422009227,1778454633000,-1161.8475935,0.00010201,2]
[422009224,1778454633000,-152.0,0.00010161,2]
[422009226,1778454633000,-500.0,0.000102,2]
[422009232,1778454633000,-152.0,0.00010381,2]
[422009223,1778454633000,-500.0,0.0001016,2]
[422009284,1778454638000,-152.0,0.0001057,2]
[422009285,1778454638000,-152.0,0.0001057,2]
[422009286,1778454638000,-152.0,0.0001057,2]
[422009288,1778454638000,-148.81431939,0.00010573,2]
[422009287,1778454638000,-152.0,0.0001057,2]
[422009291,1778454638000,-152.0,0.00010573,2]
[422009289,1778454638000,-3.18568061,0.00010573,2]
[422009294,1778454639000,-152.0,0.00010576,2]
[422009292,1778454639000,-152.0,0.00010573,2]
[422009293,1778454639000,-152.0,0.00010576,2]
[422009295,1778454639000,-1731.81431939,0.000109,2]
[422009304,1778454641000,-929.57732027,0.000109,2]
[422009305,1778454641000,-1219.91665635,0.000109,2]
[422009313,1778454641000,-1907.39379339,0.00010954,2]
[422009312,1778454641000,-1907.39379339,0.00010954,2]
[422009307,1778454641000,-151.0,0.00010907,2]
[422009306,1778454641000,-22302.89393031,0.000109,2]
[422009302,1778454641000,-1615.33271847,0.00010464,2]
[422009314,1778454641000,-1907.39379339,0.00010954,2]
[422009310,1778454641000,-1907.39379339,0.00010954,2]
[422009315,1778454641000,-1907.39379339,0.00010954,2]
[422009317,1778454641000,-295.73937491,0.00010954,2]
[422009308,1778454641000,-1907.39379339,0.00010954,2]
[422009311,1778454641000,-1907.39379339,0.00010954,2]
[422009309,1778454641000,-608.15413936,0.00010954,2]
[422009316,1778454641000,-954.09455362,0.00010954,2]
[422009384,1778454643000,-657.55986486,0.00010954,2]
[422009386,1778454643000,-1907.39379339,0.00010954,2]
[422009396,1778454644000,-304.0,0.00010954,2]
[422009392,1778454644000,-1338.81806711,0.00010954,2]
[422009389,1778454644000,-1907.39379339,0.00010954,2]
[422009388,1778454644000,-1907.39379339,0.00010954,2]
[422009802,1778454647000,-1647.6541,0.00010958,2]
[422009800,1778454647000,-1907.58311288,0.00010954,2]
[422009801,1778454647000,-155.0,0.00010957,2]
[422009811,1778454647000,-500.0,0.00010958,2]
[422009803,1778454647000,-500.0,0.00010958,2]
[422009806,1778454647000,-500.0,0.00010958,2]
[422009808,1778454647000,-500.0,0.00010958,2]
[422009805,1778454647000,-500.0,0.00010958,2]
[422009810,1778454647000,-976.3,0.00010958,2]
[422009798,1778454647000,-1907.58311288,0.00010954,2]
[422009804,1778454647000,-500.0,0.00010958,2]
[422009807,1778454647000,-500.0,0.00010958,2]
[422009820,1778454647000,-561.07,0.00010958,2]
[422009822,1778454647000,-500.0,0.00010958,2]
[422009809,1778454647000,-576.50088504,0.00010958,2]
[422009792,1778454647000,-1936.73831329,0.00010954,2]
[422009794,1778454647000,-1936.73831329,0.00010954,2]
[422009791,1778454647000,-1936.73831329,0.00010954,2]
[422009767,1778454647000,-1907.39379339,0.00010954,2]
[422009775,1778454647000,-1936.73831329,0.00010954,2]
[422009769,1778454647000,-1907.39379339,0.00010954,2]
[422009774,1778454647000,-1907.39379339,0.00010954,2]
[422009777,1778454647000,-981.22248461,0.00010954,2]
[422009772,1778454647000,-1907.39379339,0.00010954,2]
[422009789,1778454647000,-1936.73831329,0.00010954,2]
[422009786,1778454647000,-842.0,0.00010954,2]
[422009787,1778454647000,-113.51582868,0.00010954,2]
[422009788,1778454647000,-1936.73831329,0.00010954,2]
[422009795,1778454647000,-1936.73831329,0.00010954,2]
[422009793,1778454647000,-1936.73831329,0.00010954,2]
[422009790,1778454647000,-1936.73831329,0.00010954,2]
[422009821,1778454647000,-567.02,0.00010958,2]
[422009796,1778454647000,-1907.58311288,0.00010954,2]
[422009824,1778454647000,-968.49,0.00010958,2]
[422009765,1778454647000,-1907.39379339,0.00010954,2]
[422009819,1778454647000,-500.0,0.00010958,2]
[422009833,1778454647000,-500.0,0.00010958,2]
[422009841,1778454647000,-500.0,0.00010958,2]
[422009839,1778454647000,-1937.31,0.00010958,2]
[422009840,1778454647000,-836.76,0.00010958,2]
[422009842,1778454647000,-876.49,0.00010958,2]
[422009850,1778454647000,-559.42,0.00010958,2]
[422009851,1778454647000,-80.1353204,0.00010958,2]
[422009843,1778454647000,-500.0,0.00010958,2]
[422009844,1778454647000,-123.87619506,0.00010958,2]
[422009845,1778454647000,-773.83380494,0.00010958,2]
[422009847,1778454647000,-2556.13,0.00010958,2]
[422009846,1778454647000,-500.0,0.00010958,2]
[422009849,1778454647000,-2100.77,0.00010958,2]
[422009848,1778454647000,-500.0,0.00010958,2]
[422009823,1778454647000,-257.28034933,0.00010958,2]
[422009836,1778454647000,-914.91,0.00010958,2]
[422009837,1778454647000,-921.7,0.00010958,2]
[422009763,1778454647000,-264.57572628,0.00010954,2]
[422009838,1778454647000,-500.0,0.00010958,2]
[422009814,1778454647000,-500.0,0.00010958,2]
[422009835,1778454647000,-500.0,0.00010958,2]
[422009812,1778454647000,-500.0,0.00010958,2]
[422009825,1778454647000,-500.0,0.00010958,2]
[422009815,1778454647000,-500.0,0.00010958,2]
[422009817,1778454647000,-500.0,0.00010958,2]
[422009818,1778454647000,-943.98,0.00010958,2]
[422009816,1778454647000,-500.0,0.00010958,2]